bitfinex-derivatives/quotes_ETHF0:USTF0_20250520
["timestamp","ask_amount","ask_price","bid_price","bid_amount"]
[1747764844953,4.19424,2502.3,2502.2,3.21379245]
[1747764846852,0.79907,2501.9,2501.8,3.2078]
[1747764847058,2.79759,2501.9,2501.8,3.2078]
[1747764847352,0.79913,2501.7,2501.6,12.534]
[1747764847556,0.79916,2501.6,2501.5,0.7986]
[1747764847747,0.79923,2501.4,2501.3,16.54379245]
[1747764848249,3.40393,2501.6,2501.4,0.7992]
[1747764848250,0.79921,2501.5,2501.4,0.7992]
[1747764848455,0.79923,2501.4,2501.3,17.34303245]
[1747764848953,0.79923,2501.4,2501.3,19.34195245]
[1747764849559,0.79923,2501.4,2501.3,16.13415245]
[1747764850555,0.79923,2501.4,2501.3,19.34195245]
[1747764852953,0.79923,2501.4,2501.3,15.33491245]
[1747764854056,0.79923,2501.4,2501.3,2.80091245]
[1747764854258,0.79923,2501.4,2501.3,15.33891245]
[1747764856458,0.79923,2501.4,2501.3,16.13817245]
[1747764858756,0.79923,2501.4,2501.3,15.33891245]
[1747764859156,0.79923,2501.4,2501.3,13.33999245]
[1747764861459,0.79923,2501.4,2501.3,14.67029245]
[1747764863068,0.79923,2501.4,2501.3,12.54399245]
[1747764863277,4.12685,2501.4,2501.3,12.54399245]
[1747764864464,9.12685,2501.4,2501.3,2.45e-06]
[1747764864860,62.44085,2501.4,2501.3,2.45e-06]
[1747764867968,69.07285,2501.4,2501.3,2.45e-06]
[1747764868566,69.07485,2501.4,2501.3,2.45e-06]
[1747764871574,72.28265,2501.4,2501.3,2.45e-06]
[1747764872974,48.13465,2501.4,2501.3,2.45e-06]
[1747764874262,53.13465,2501.4,2501.3,2.45e-06]
[1747764875677,59.76665,2501.4,2501.3,2.45e-06]
[1747764875970,0.79945,2500.7,2500.6,0.97708341]
[1747764876168,0.79945,2500.7,2500.6,0.21748341]
[1747764876169,4.00725,2500.7,2500.6,0.21748341]
[1747764876375,0.79948,2500.6,2500.5,1.59978341]
[1747764876573,2.18278,2500.6,2500.5,1.59978341]
[1747764878169,4.18234,2500.6,2500.5,1.70219074]
[1747764878375,4.18234,2500.6,2500.5,0.31989074]
[1747764878576,0.79948,2500.6,2500.5,0.31989074]
[1747764878767,3.52837245,2500.8,2500.5,9.48695074]
[1747764878768,0.00599245,2500.8,2500.5,9.48695074]
[1747764879071,0.00599245,2500.8,2500.6,4.0067]
[1747764879072,0.79945,2500.7,2500.6,4.0067]
[1747764879272,0.79945,2500.7,2500.6,0.7989]
[1747764879472,0.79945,2500.7,2500.6,2.79838]
[1747764879673,0.79945,2500.7,2500.6,3.40809688]
[1747764881270,0.79945,2500.7,2500.6,3.11827074]
[1747764882975,0.79945,2500.7,2500.6,2.31937074]
[1747764883277,2.79893001,2500.7,2500.6,0.31989074]
[1747764884380,4.11123001,2500.7,2500.6,0.53790036]
[1747764885384,4.11123001,2500.7,2500.6,0.31989074]
[1747764886278,2.79893001,2500.7,2500.6,0.31989074]
[1747764886483,0.79945,2500.7,2500.6,2.31937074]
[1747764887571,0.00599245,2500.8,2500.6,2.31937074]
[1747764887773,0.00599245,2500.8,2500.7,2.15015]
[1747764887984,3.2078,2501.0,2500.7,1.67059074]
[1747764887985,0.7994,2500.9,2500.7,1.67059074]
[1747764888174,0.7994,2500.9,2500.8,13.8707]
[1747764888374,0.7994,2500.9,2500.8,15.87002]
[1747764888574,0.7994,2500.9,2500.8,20.87002]
[1747764889181,0.7994,2500.9,2500.8,3.35002]
[1747764889480,0.7994,2500.9,2500.8,15.87002]
[1747764889684,0.7994,2500.9,2500.8,14.62331073]
[1747764889877,0.7994,2500.9,2500.8,16.62263073]
[1747764890878,0.7994,2500.9,2500.8,16.48074519]
[1747764892277,5.21211245,2501.1,2500.8,16.48074519]
[1747764892482,0.79935,2501.0,2500.9,0.7951]
[1747764892681,0.79935,2501.0,2500.9,2.8713]
[1747764893483,2.79859,2501.0,2500.9,2.8713]
[1747764893875,0.79939,2500.9,2500.8,0.61072519]
[1747764894078,0.79939,2500.9,2500.8,5.19e-06]
[1747764894278,4.21471001,2500.9,2500.8,5.19e-06]
[1747764895081,3.41532001,2500.9,2500.6,5.18e-06]
[1747764895287,4.00725,2500.7,2500.6,5.18e-06]
[1747764895679,46.80673001,2500.7,2500.6,5.18e-06]
[1747764895882,51.80673001,2500.7,2500.6,5.18e-06]
[1747764896082,51.80673001,2500.7,2500.3,0.22255542]
[1747764896083,0.79955,2500.4,2500.3,0.22255542]
[1747764896285,4.00735,2500.4,2500.3,0.22255542]
[1747764896485,6.00707,2500.4,2500.3,0.22255542]
[1747764897193,6.00707,2500.4,2500.3,0.00398441]
[1747764897883,4.00735,2500.4,2500.3,2.00370441]
[1747764898089,0.79955,2500.4,2500.3,2.00370441]
[1747764898691,2.79927,2500.4,2500.3,0.00398441]
[1747764898889,5.73267,2500.4,2500.3,0.00398441]
[1747764900194,5.73267,2500.4,2500.3,4.41e-06]
[1747764900486,5.73267,2500.4,2500.0,5.05352427]
[1747764900487,0.79964,2500.1,2500.0,1e-08]
[1747764900793,0.79983,2499.5,2499.4,12.491]
[1747764901188,0.79983,2499.5,2499.4,14.49144]
[1747764901790,0.79983,2499.5,2499.4,15.87784]
[1747764902792,0.80579245,2499.7,2499.4,15.87784]
[1747764902992,0.00599245,2499.7,2499.6,0.7998]
[1747764903297,0.7388,2500.6,2499.8,1.99934]
[1747764903496,0.79964,2500.1,2500.0,0.79965]
[1747764903695,0.79964,2500.1,2500.0,2.0301]
[1747764903897,0.79964,2500.1,2500.0,4.03006]
[1747764904195,2.79960001,2500.1,2500.0,2.0301]
[1747764905305,0.79964,2500.1,2500.0,7.23786]
[1747764905604,0.00599245,2500.3,2500.2,0.79961]
[1747764905904,0.00599245,2500.3,2500.2,12.493]
[1747764906202,0.00599245,2500.3,2500.2,14.4928]
[1747764906404,0.00599245,2500.3,2500.2,20.29241]
[1747764906596,1.99847,2500.9,2500.2,32.9888]
[1747764906798,0.79951,2500.6,2500.5,0.79951]
[1747764906993,0.79951,2500.6,2500.5,14.0093]
[1747764907208,0.79951,2500.6,2500.5,16.00886]
[1747764907497,0.79951,2500.6,2500.5,16.80837]
[1747764907893,0.79948,2500.6,2500.5,16.00886]
[1747764908297,0.79948,2500.6,2500.5,16.80837]
[1747764908706,0.79948,2500.6,2500.5,17.12825196]
[1747764910407,0.79947,2500.7,2500.6,0.79945]
[1747764910708,0.79948,2500.6,2500.5,17.12824196]
[1747764913711,0.79947,2500.7,2500.6,0.79945]
[1747764913913,0.00599245,2500.8,2500.7,0.79945]
[1747764914211,0.80541245,2500.8,2500.7,0.79945]
[1747764914409,0.80541245,2500.8,2500.7,2.79885]
[1747764914804,0.00599245,2500.8,2500.7,8.11873196]
[1747764915005,0.00599245,2500.8,2500.7,11.32653196]
[1747764915810,0.80541245,2500.8,2500.7,11.32653196]
[1747764916010,0.80541245,2500.8,2500.7,5.52708196]
[1747764916212,0.80541245,2500.8,2500.7,14.81028196]
[1747764916408,0.80541245,2500.8,2500.7,1.11933196]
[1747764916616,0.80541245,2500.8,2500.7,3.11873196]
[1747764917818,0.80541245,2500.8,2500.7,2.31928196]
[1747764918124,4.01321245,2500.8,2500.7,2.31928196]
[1747764918323,0.80541245,2500.8,2500.7,2.31928196]
[1747764919524,2.80481245,2500.8,2500.7,0.31988196]
[1747764919723,6.01261245,2500.8,2500.7,0.31988196]
[1747764921222,11.01261245,2500.8,2500.7,0.31988196]
[1747764921519,6.01261245,2500.8,2500.7,0.31988196]
[1747764921820,0.79945,2500.7,2500.6,0.00583724]
[1747764922027,2.16895,2500.7,2500.6,0.00583724]
[1747764922216,44.96843001,2500.7,2500.6,0.00583724]
[1747764925029,4.16843001,2500.7,2500.6,0.00583724]
[1747764931233,0.79945,2500.7,2500.6,2.80479724]
[1747764931432,0.00599245,2500.8,2500.7,0.79945]
[1747764931634,0.80541245,2500.8,2500.7,15.4069]
[1747764931830,0.00599245,2500.8,2500.7,23.20575]
[1747764932030,0.80541245,2500.8,2500.7,23.20575]
[1747764932225,0.00599245,2500.8,2500.7,23.20575]
[1747764932430,0.00599245,2500.8,2500.7,26.41355]
[1747764933938,0.00599245,2500.8,2500.7,26.73332246]
[1747764935437,0.00599245,2500.8,2500.7,27.16972079]
[1747764936037,0.80541245,2500.8,2500.7,34.86527079]
[1747764936242,0.80541245,2500.8,2500.7,35.66472079]
[1747764936541,0.80541245,2500.8,2500.7,35.66372079]
[1747764936736,0.80541245,2500.8,2500.7,8.90427079]
[1747764936943,0.80541245,2500.8,2500.7,34.86227079]
[1747764937337,0.80541245,2500.8,2500.7,32.45392079]
[1747764937540,0.80541245,2500.8,2500.7,31.65447079]
[1747764937943,0.80541245,2500.8,2500.7,5.69647079]
[1747764938144,0.80541245,2500.8,2500.7,31.65447079]
[1747764938443,0.80541245,2500.8,2500.7,31.21807246]
[1747764939141,0.80541245,2500.8,2500.7,32.01752246]
[1747764939537,0.80541245,2500.8,2500.7,14.78317246]
[1747764940041,2.80481245,2500.8,2500.7,13.07471503]
[1747764941445,6.01261245,2500.8,2500.7,13.07471503]
[1747764942041,6.01261245,2500.8,2500.7,13.58322246]
[1747764942241,4.01321245,2500.8,2500.7,15.58262246]
[1747764942946,4.01321245,2500.8,2500.7,14.78317246]
[1747764944349,0.80541245,2500.8,2500.7,15.58262246]
[1747764944547,0.00599245,2500.8,2500.7,15.58262246]
[1747764945351,0.80541245,2500.8,2500.7,15.58262246]
[1747764947752,0.80541245,2500.8,2500.7,14.78317246]
[1747764948448,0.80541245,2500.8,2500.7,15.58262246]
[1747764948947,0.80541245,2500.8,2500.7,14.78317246]
[1747764949952,0.80541245,2500.8,2500.7,15.58262246]
[1747764951349,2.80481245,2500.8,2500.7,12.78377246]
[1747764951658,2.80481245,2500.8,2500.7,0.31977246]
[1747764952356,4.13661245,2500.8,2500.7,0.31977246]
[1747764961066,9.13661245,2500.8,2500.7,0.31977246]
[1747764961257,0.79948,2500.6,2500.5,0.00599245]
[1747764961565,4.00728,2500.6,2500.5,0.00599245]
[1747764961862,6.00684,2500.6,2500.5,0.00599245]
[1747764962567,12.20611,2500.6,2500.1,0.29094257]
[1747764962858,4.00741,2500.2,2500.1,0.29094257]
[1747764963261,6.00729,2500.2,2500.1,0.29094257]
[1747764963762,0.79971,2499.9,2499.8,13.24071]
[1747764964067,0.79971,2499.9,2499.8,13.7202]
[1747764964364,5.20792,2499.9,2499.6,0.29693502]
[1747764964561,0.79977,2499.7,2499.6,0.29693502]
[1747764964964,2.07567,2499.7,2499.6,0.29693502]
[1747764965167,1.2759,2499.7,2499.6,0.29693502]
[1747764965356,2.07567,2499.7,2499.6,0.00599245]
[1747764967061,4.07595,2499.7,2499.6,2.45e-06]
[1747764967262,9.07595,2499.7,2499.6,2.45e-06]
[1747764967474,4.07595,2499.7,2499.6,2.45e-06]
[1747764967766,44.87595,2499.7,2499.6,2.45e-06]
[1747764968171,49.87595,2499.7,2499.6,2.45e-06]
[1747764971172,0.80009,2498.7,2498.6,1.3672]
[1747764971572,0.80012,2498.6,2498.5,0.29094257]
[1747764971770,0.80012,2498.6,2498.4,3.976]
[1747764971771,0.80015,2498.5,2498.4,3.976]
[1747764971970,0.80015,2498.5,2498.4,3.2078]
[1747764972269,2.80139,2498.5,2498.4,3.2078]
[1747764972466,4.12529,2498.5,2498.4,3.2078]
[1747764973074,0.80022,2498.3,2498.2,0.29693502]
[1747764973463,2.80162,2498.3,2498.2,5.02e-06]
[1747764973769,0.80044,2497.6,2497.5,2.65e-06]
[1747764974072,16.45324,2497.6,2497.5,2.65e-06]
[1747764974270,23.4552,2497.6,2497.5,2.65e-06]
[1747764974972,6.0102,2497.6,2497.5,2.65e-06]
[1747764975775,2.8024,2497.6,2497.5,2.65e-06]
[1747764975974,3.2078,2497.9,2497.5,2.80241265]
[1747764976184,3.2078,2497.9,2497.3,18.4815]
[1747764976185,0.80044,2497.7,2497.6,1.2884]
[1747764976588,0.80044,2497.7,2497.6,3.29028]
[1747764977487,3.2078,2497.9,2497.6,4.0907]
[1747764977680,0.80038,2497.8,2497.7,1.2884]
[1747764977878,3.2078,2497.9,2497.7,1.2884]
[1747764978082,3.2078,2497.9,2497.7,3.29016]
[1747764978281,0.80038,2497.8,2497.7,1.2884]
[1747764978478,0.80051,2497.4,2497.3,4.7441]
[1747764978678,2.80263,2497.4,2497.3,1.5363]
[1747764979075,0.80057,2497.2,2497.1,1.3389]
[1747764979490,0.80057,2497.2,2497.1,3.34118499]
[1747764980190,3.2078,2497.3,2497.1,3.34118499]
[1747764980488,4.00834,2497.3,2497.2,1.3389]
[1747764980788,4.00834,2497.3,2497.2,2.13947]
[1747764980981,4.00834,2497.3,2497.2,4.14166999]
[1747764981489,4.00834,2497.3,2497.2,3.34109999]
[1747764981786,4.00834,2497.3,2497.2,1.3389]
[1747764982579,4.00834,2497.3,2497.2,3.34109999]
[1747764982781,0.80054,2497.3,2497.2,3.34109999]
[1747764983385,2.15724,2497.3,2497.2,1.3389]
[1747764983575,0.8006,2497.1,2497.0,0.7658]
[1747764983780,0.8006,2497.1,2497.0,2.0651]
[1747764983981,0.8006,2497.1,2497.0,4.067465]
[1747764985586,4.0084,2497.1,2497.0,2.0651]
[1747764985792,5.210165,2497.1,2496.7,0.8079]
[1747764985997,0.80073,2496.7,2496.6,13.97616]
[1747764986289,1.3825,2497.0,2496.6,13.9303]
[1747764986484,0.80069,2496.9,2496.8,0.80068]
[1747764986691,0.8007,2496.8,2496.7,0.80071]
[1747764987188,0.8007,2496.8,2496.7,4.090715]
[1747764987393,0.80069,2496.9,2496.8,0.80068]
[1747764987590,0.80069,2496.9,2496.8,1.3759]
[1747764987791,0.80069,2496.9,2496.8,3.378425]
[1747764987988,1.3825,2497.2,2496.8,3.378425]
[1747764987989,5.9604848,2497.4,2496.8,3.378425]
[1747764988192,4.4942048,2497.4,2496.8,4.5837]
[1747764988593,0.80064,2497.0,2496.9,0.80064]
[1747764988786,0.80064,2497.0,2496.9,2.17654]
[1747764988987,0.80064,2497.0,2496.9,4.178985]
[1747764989494,0.80061,2497.1,2497.0,0.8006]
[1747764989693,0.80061,2497.1,2497.0,2.1765]
[1747764989891,0.80058,2497.2,2497.1,0.80056]
[1747764990093,3.2138048,2497.4,2497.1,0.7747]
[1747764990294,0.80054,2497.3,2497.2,1.3759]
[1747764990493,2.07904,2497.3,2497.2,1.3759]
[1747764990694,4.08124,2497.3,2497.2,1.3759]
[1747764991597,0.80057,2497.2,2497.1,0.7747]
[1747764991798,2.07907,2497.2,2497.1,0.7747]
[1747764991999,4.081355,2497.2,2497.1,2.1495]
[1747764992194,2.802855,2497.2,2497.1,2.1495]
[1747764995396,2.802855,2497.2,2497.1,2.9501]
[1747764995596,2.802855,2497.2,2497.1,2.1495]
[1747764996301,2.802855,2497.2,2497.1,2.46979375]
[1747764996603,3.2138048,2497.4,2497.1,4.00379499]
[1747764996803,0.8065148,2497.4,2497.3,0.80054]
[1747764997001,0.8065148,2497.4,2497.2,0.7579]
[1747764997002,0.80054,2497.3,2497.2,1.55845]
[1747764997299,0.80054,2497.3,2497.2,0.7579]
[1747764997600,2.16834,2497.3,2497.2,0.7579]
[1747764998198,4.17054,2497.3,2497.2,0.7579]
[1747764998397,2.16834,2497.3,2497.2,0.7579]
[1747764998902,2.16834,2497.3,2497.2,1.55847]
[1747764999098,0.0060048,2497.4,2497.3,0.80054]
[1747764999497,0.0060048,2497.4,2497.3,2.80266]
[1747764999892,0.0060048,2497.4,2497.3,4.95096]
[1747765001408,0.8065148,2497.4,2497.3,4.95096]
[1747765001707,0.0060048,2497.4,2497.3,4.95096]
[1747765002005,0.8065148,2497.4,2497.3,4.95096]
[1747765002316,0.8065148,2497.4,2497.3,4.15042]
[1747765002610,0.8065148,2497.4,2497.2,1.19197396]
[1747765002611,0.79445734,2497.3,2497.2,1.19197396]
[1747765002907,2.17705734,2497.3,2497.2,0.43407396]
[1747765003205,2.93475734,2497.3,2497.2,3.23684395]
[1747765003393,2.17705734,2497.3,2497.2,3.23684395]
[1747765004112,0.0060048,2497.4,2497.2,3.23684395]
[1747765004113,0.0060048,2497.4,2497.3,0.80054]
[1747765004302,0.0060048,2497.4,2497.3,2.18524]
[1747765004503,0.8065148,2497.4,2497.3,3.38682]
[1747765004697,0.8065148,2497.4,2497.3,2.00212]
[1747765004911,0.80059,2497.2,2497.1,0.80056]
[1747765005109,0.80059,2497.2,2497.1,13.23256]
[1747765005309,0.80059,2497.2,2497.1,15.23484499]
[1747765005704,0.80059,2497.2,2497.1,2.00228499]
[1747765006006,2.18317,2497.3,2497.1,2.00228499]
[1747765006309,2.18317,2497.3,2497.2,0.80057]
[1747765006716,0.80057,2497.2,2497.1,2.59735427]
[1747765006905,2.20197,2497.2,2497.1,2.59735427]
[1747765007108,2.20197,2497.2,2497.1,2.43995926]
[1747765008408,4.204255,2497.2,2497.1,0.43767427]
[1747765008602,4.204255,2497.2,2497.1,1.23827427]
[1747765008804,1.4014,2497.2,2497.1,3.24055926]
[1747765009412,2.20197,2497.2,2497.1,3.24055926]
[1747765009714,4.204255,2497.2,2497.1,0.75796264]
[1747765010605,4.204255,2497.2,2497.1,0.61226974]
[1747765011205,45.004255,2497.2,2497.1,0.61226974]
[1747765011905,50.004255,2497.2,2497.1,0.32028837]
[1747765012099,0.80063,2497.0,2496.9,0.29198137]
[1747765012417,4.00347,2496.9,2496.3,0.57845847]
[1747765012613,4.00863,2496.4,2496.3,0.57845847]
[1747765013004,6.01155501,2496.4,2496.3,0.57845847]
[1747765013204,0.80089,2496.2,2496.1,1.01711845]
[1747765013410,13.23489,2496.2,2496.1,1.01711845]
[1747765013613,13.23489,2496.2,2495.5,1.45426698]
[1747765013614,0.80111,2495.6,2495.5,0.58451405]
[1747765013911,4.00891,2495.6,2495.5,0.58451405]
[1747765014109,0.80108,2495.6,2495.5,2.58807905]
[1747765014412,4.00888,2495.6,2495.5,0.58451405]
[1747765014603,6.012445,2495.6,2495.5,0.58451405]
[1747765015002,0.80118,2495.3,2495.2,0.72347204]
[1747765015202,0.80131,2494.9,2494.8,3.2078]
[1747765015615,2.00413,2494.9,2494.5,4.00923]
[1747765015814,0.8014,2494.6,2494.5,3.2078]
[1747765016011,0.80144,2494.5,2494.4,0.72347204]
[1747765016209,2.17854,2494.5,2494.4,0.72347204]
[1747765016411,4.18299,2494.5,2494.4,0.72347204]
[1747765016813,1.3771,2494.5,2494.4,2.00445]
[1747765017114,1.3771,2494.5,2494.4,2.80592]
[1747765017316,1.3771,2494.5,2494.4,2.00445]
[1747765017501,1.3771,2494.5,2494.4,2.80592]
[1747765017708,0.7658,2495.1,2494.7,0.80136]
[1747765017902,5.4046,2495.0,2494.6,0.80137]
[1747765018112,4.6033,2495.0,2494.3,0.7777]
[1747765018416,0.80131,2494.9,2494.8,0.08486477]
[1747765018606,2.19681,2494.9,2494.8,0.08486477]
[1747765018808,4.20094,2494.9,2494.8,0.08486477]
[1747765019210,2.00336,2494.8,2493.9,3.2078]
[1747765019416,3.2078,2494.5,2493.6,15.6238]
[1747765019613,3.2078,2494.1,2493.6,3.2078]
[1747765019915,0.80176,2493.5,2493.4,1.3226]
[1747765020118,0.80179,2493.4,2493.3,3.93127204]
[1747765020322,5.40509,2493.4,2493.3,0.72347204]
[1747765020616,5.40509,2493.4,2492.3,3.2078]
[1747765020617,6.608635,2493.4,2492.6,1.3226]
[1747765020807,0.80211,2492.4,2492.3,3.2078]
[1747765021013,0.80211,2492.4,2492.3,4.5227]
[1747765021219,0.80808697,2492.6,2492.3,6.52884]
[1747765021510,0.00601697,2492.6,2492.3,6.52876]
[1747765021921,0.80808697,2492.6,2492.3,6.01599]
[1747765022215,0.00601697,2492.6,2492.4,1.3149]
[1747765022404,0.00601697,2492.6,2492.3,5.21386]
[1747765022606,0.80218,2492.2,2492.1,0.72347204]
[1747765023111,0.80218,2492.2,2492.1,2.0063]
[1747765023315,0.80221,2492.1,2492.0,3.2078]
[1747765023711,0.80224,2492.0,2491.9,1.3149]
[1747765023912,0.80224,2492.0,2491.7,3.2078]
[1747765023913,0.8023,2491.8,2491.7,3.2078]
[1747765024116,0.8024,2491.5,2491.4,1.3751]
[1747765024423,0.8024,2491.5,2491.0,0.80255]
[1747765024424,0.80253,2491.1,2491.0,0.2162289]
[1747765024617,4.01033,2491.1,2491.0,0.2162289]
[1747765024920,22.637985,2491.1,2489.9,0.72347204]
[1747765025122,4.01068,2490.0,2489.9,0.72347204]
[1747765025317,3.2078,2490.0,2489.9,0.72347204]
[1747765025618,4.01068,2490.0,2489.9,0.72347204]
[1747765025918,3.2078,2490.4,2489.9,10.93934204]
[1747765026116,3.2078,2490.9,2490.3,3.2078]
[1747765026315,2.74897,2491.7,2491.0,0.80256]
[1747765026316,0.00601697,2491.3,2491.0,0.80256]
[1747765026507,0.80849697,2491.3,2490.8,3.2078]
[1747765026706,3.2078,2491.0,2490.4,1.3751]
[1747765026928,3.2078,2490.7,2490.1,0.7692]
[1747765027219,3.2078,2490.3,2489.8,6.52385715]
[1747765027422,3.2078,2490.5,2489.9,12.429]
[1747765027620,12.429,2491.0,2489.8,6.52385715]
[1747765027621,0.80288,2490.1,2489.8,6.52385715]
[1747765027822,0.80284,2490.2,2489.8,7.32678715]
[1747765028015,3.2078,2490.3,2489.8,6.52385715]
[1747765028221,0.80284,2490.2,2489.9,1.398]
[1747765028420,0.80285,2490.2,2489.9,1.398]
[1747765028609,1.2923,2490.2,2489.9,3.40599]
[1747765028815,3.2078,2490.6,2490.0,12.434]
[1747765029018,3.2078,2490.3,2489.9,1.398]
[1747765029219,1.2923,2490.5,2490.0,12.434]
[1747765029422,1.2923,2490.5,2490.1,1.398]
[1747765029613,3.2078,2491.0,2490.4,3.2078]
[1747765029819,3.21381697,2491.3,2490.5,1.398]
[1747765030018,4.01039,2491.0,2490.6,13.23667]
[1747765030313,3.2078,2490.7,2490.6,12.434]
[1747765030521,3.2078,2490.7,2490.6,13.23669]
[1747765030722,2.09851,2490.9,2490.6,2.8102]
[1747765030917,2.09851,2490.9,2490.6,15.2442]
[1747765031217,3.2078,2491.0,2490.7,0.80266]
[1747765031419,3.2078,2491.0,2490.7,1.2892]
[1747765031724,1.2959,2491.2,2490.9,0.80258]
[1747765032022,3.2078,2491.1,2490.9,12.436]
[1747765032217,2.09846,2491.0,2490.9,12.436]
[1747765032413,1.2959,2491.0,2490.9,14.443225]
[1747765032717,1.2959,2491.0,2490.3,12.436]
[1747765032923,0.80259,2490.9,2490.7,1.2892]
[1747765033116,0.80263,2490.8,2490.7,1.2892]
[1747765033424,0.80276,2490.4,2490.3,12.436]
[1747765034017,4.01056,2490.4,2490.3,14.44375]
[1747765034221,0.80276,2490.4,2490.3,14.44375]
[1747765034522,4.01056,2490.4,2490.3,14.44375]
[1747765034722,3.2078,2490.4,2490.3,15.24654]
[1747765035224,3.2078,2490.7,2490.3,19.44375]
[1747765035412,1.3469,2491.0,2490.9,0.80259]
[1747765035611,3.2078,2491.1,2491.0,0.80256]
[1747765035809,3.2078,2491.1,2491.0,4.148845]
[1747765036710,0.00601697,2491.3,2491.2,0.8025]
[1747765036915,0.00601697,2491.3,2491.2,5.8025]
[1747765037121,0.00601697,2491.3,2491.2,7.809525]
[1747765037911,3.2078,2492.1,2491.3,2.00612]
[1747765038117,3.2078,2492.1,2491.4,17.38259]
[1747765038318,1.4195,2492.0,2491.7,0.80233]
[1747765038517,2.22175,2492.0,2491.9,0.80227]
[1747765038822,1.4195,2492.0,2491.6,1.3642]
[1747765039022,0.80227,2491.9,2491.8,0.80228]
[1747765039327,2.22777697,2492.0,2491.9,0.80227]
[1747765039717,2.22777697,2492.0,2491.9,2.00645999]
[1747765039918,1.42551697,2492.0,2491.6,1.3642]
[1747765040113,0.8025,2491.2,2491.1,0.80252]
[1747765040321,0.8025,2491.2,2491.1,13.7384]
[1747765040514,4.0103,2491.2,2491.1,3.306505]
[1747765040722,4.0103,2491.2,2491.1,2.007105]
[1747765041723,4.0103,2491.2,2491.0,0.09088174]
[1747765041929,0.80253,2491.1,2491.0,3.39742674]
[1747765042128,2.10013,2491.1,2491.0,3.39742674]
[1747765043028,2.10013,2491.1,2491.0,4.19998674]
[1747765043426,1.2976,2491.1,2491.0,4.19998674]
[1747765043621,0.7659,2491.8,2491.0,4.19998674]
[1747765043622,3.2078,2491.8,2491.1,0.80253]
[1747765043829,3.2078,2491.8,2491.5,0.8024]
[1747765043830,1.2976,2491.6,2491.5,0.8024]
[1747765044126,2.01164697,2492.0,2491.9,0.80227]
[1747765044127,0.00601697,2492.0,2491.9,0.80227]
[1747765044522,0.00601697,2492.0,2491.9,15.24772999]
[1747765045125,2.81471697,2492.0,2491.9,12.439]
[1747765045324,2.16845697,2492.0,2491.9,15.24772999]
[1747765045533,0.00601697,2492.0,2491.9,15.24772999]
[1747765045731,0.80825697,2492.0,2491.9,15.24772999]
[1747765045937,0.8023,2491.8,2491.7,1.2777]
[1747765046235,0.8023,2491.8,2491.7,14.1257]
[1747765046428,5.37028,2491.9,2491.8,0.8023]
[1747765046632,5.37028,2491.9,2491.8,3.32284]
[1747765047132,5.37028,2491.9,2491.8,4.12514]
[1747765047133,3.2078,2491.9,2491.8,4.12514]
[1747765047532,4.01007,2491.9,2491.8,3.32284]
[1747765047733,5.37027,2491.9,2491.8,4.12514]
[1747765048133,5.37027,2491.9,2491.8,2.32750944]
[1747765048435,3.2078,2491.9,2491.8,3.12980944]
[1747765048637,3.2078,2491.9,2491.8,4.46270944]
[1747765049439,4.01007,2491.9,2491.8,3.66040944]
[1747765049737,4.01007,2491.9,2491.8,4.46270944]
[1747765049931,5.38597,2491.9,2491.8,4.08773525]
[1747765050126,4.5837,2491.9,2491.8,4.89003525]
[1747765050332,0.00601697,2492.0,2491.9,0.80227]
[1747765050535,0.00601697,2492.0,2491.9,2.13517]
[1747765050735,0.00601697,2492.0,2491.9,4.14162999]
[1747765050934,0.80825697,2492.0,2491.9,4.14162999]
[1747765051242,0.80227,2491.9,2491.8,14.39758525]
[1747765051431,2.12327,2491.9,2491.8,14.8535]
[1747765051631,5.33107,2491.9,2491.8,14.8535]
[1747765051831,2.12327,2491.9,2491.8,14.8535]
[1747765052640,2.12327,2491.9,2491.8,15.6558]
[1747765052939,1.321,2491.9,2491.8,15.6558]
[1747765053138,1.321,2491.9,2491.8,17.37984953]
[1747765053535,2.12327,2491.9,2491.8,17.37984953]
[1747765053838,1.321,2491.9,2491.8,17.37984953]
[1747765054132,0.00601697,2492.0,2491.9,0.80227]
[1747765054340,3.2078,2492.6,2491.9,9.5355]
[1747765054537,0.80212,2492.5,2492.4,0.80207]
[1747765054729,2.08202,2492.5,2492.4,12.847]
[1747765055031,3.28596,2492.5,2492.3,12.847]
[1747765055232,0.80211,2492.4,2492.3,13.64913]
[1747765055432,2.08201,2492.4,2492.3,13.64913]
[1747765055728,2.08201,2492.4,2492.3,15.65527]
[1747765055934,3.21381697,2492.6,2492.5,0.80208]
[1747765056134,4.49371697,2492.6,2492.5,0.80208]
[1747765056341,2.08796697,2492.6,2492.5,0.80208]
[1747765056628,2.08796697,2492.6,2492.4,2.12979]
[1747765056629,0.80208,2492.5,2492.4,2.12979]
[1747765056941,2.08198,2492.5,2492.4,12.846]
[1747765057135,4.08804,2492.5,2492.4,13.64811]
[1747765057532,4.08804,2492.5,2492.4,12.846]
[1747765057839,4.08804,2492.5,2492.3,0.57683846]
[1747765057840,0.80211,2492.4,2492.3,0.57683846]
[1747765058138,6.22701,2492.4,2492.3,0.61237926]
[1747765058334,7.42165,2492.4,2492.3,0.61237926]
[1747765059345,7.42165,2492.4,2492.3,0.32093202]
[1747765062945,4.6134,2492.4,2492.3,15.97421202]
[1747765063136,0.00601697,2492.6,2492.4,0.8021]
[1747765063336,0.80211,2492.4,2492.3,13.16593202]
[1747765063638,1.3842,2492.5,2492.3,15.60936553]
[1747765063837,1.3842,2492.5,2492.4,0.80211]
[1747765064348,0.00601697,2492.6,2492.5,0.80208]
[1747765064550,0.00601697,2492.6,2492.5,2.80806]
[1747765064745,0.80806697,2492.6,2492.5,3.42228]
[1747765065049,0.80208,2492.5,2492.4,13.16593202]
[1747765065450,4.19234,2492.5,2492.4,12.845]
[1747765065748,0.80211,2492.4,2492.3,1.37897846]
[1747765066045,1.3842,2492.4,2492.3,14.22397846]
[1747765066249,1.3842,2492.4,2492.3,16.23011846]
[1747765066450,4.19245,2492.4,2492.3,0.57683846]
[1747765066749,4.19245,2492.4,2492.3,13.16588664]
[1747765067248,4.19245,2492.4,2492.3,0.32088664]